[Event "Moscow-ch Women 2021"]
[Site "Moscow"]
[Date "2021.04.01"]
[Round "8.9"]
[White "Panina, Sofya"]
[Black "Kuznetsova, Veronika"]
[Result "0-1"]
[ECO "D56"]
[WhiteElo "1341"]
[BlackElo "1343"]
[Annotator "NA RC"]
[PlyCount "74"]
[EventDate "2021.03.25"]
[EventType "swiss"]
[EventCountry "RUS"]
[SourceTitle "playchess.com"]
[Source "ChessBase"]
[SourceQuality "1"]
[TimeControl "5400+30"]

1. d4 {[%emt 0:00:30]} d5 {[%emt 0:02:57]} 2. c4 {[%emt 0:00:04]} e6 {[%emt 0:00:04]} 3. Nc3 {[%emt 0:00:06]} Nf6 {[%emt 0:00:04]} 4. Bg5 {[%emt 0:00:04]} Be7 {[%emt 0:00:06]} 5. e3 {[%emt 0:00:07]} h6 {[%emt 0:00:27]} 6. Bh4 {[%emt 0:00:09]} O-O {[%emt 0:00:25]} 7. Nf3 {[%emt 0:00:04]} a6 {[%emt 0:00:38]} 8. Be2 {[%emt 0:00:21]} dxc4 {[%emt 0:00:07]} 9. Bxc4 {[%emt 0:00:02]} b5 {[%emt 0:00:05]} 10. Be2 {[%emt 0:01:27]} Bb7 {[%emt 0:00:09]} 11. O-O {[%emt 0:01:18]} Nbd7 {[%emt 0:00:55]} 12. Qc2 {[%emt 0:00:33]} c5 {[%emt 0:01:49]} 13. Rad1 {[%emt 0:01:44]} Qb6 {[%emt 0:04:16]} 14. Ne5 {[%emt 0:05:12]} Rfe8 {[%emt 0:27:11]} 15. dxc5 {[%emt 0:39:42]} Nxc5 {[%emt 0:01:24]} 16. Bf3 {[%emt 0:09:27]} Bxf3 {[%emt 0:01:09]} 17. Nxf3 {[%emt 0:00:03]} Red8 {[%emt 0:00:48]} 18. Rxd8+ {[%emt 0:01:43]} Rxd8 {[%emt 0:00:26]} 19. Rd1 {[%emt 0:00:11]} Rxd1+ {[%emt 0:04:33]} 20. Qxd1 {[%emt 0:00:24]} Qc7 {[%emt 0:00:44]} 21. Bg3 {[%emt 0:05:59]} Qc8 {[%emt 0:02:21]} 22. h3 {[%emt 0:03:00]} Nce4 {[%emt 0:03:14]} 23. Nxe4 {[%emt 0:00:24]} Nxe4 {[%emt 0:00:07]} 24. Bh2 {[%emt 0:10:53]} Nf6 {[%emt 0:05:14]} 25. Nd4 {[%emt 0:02:17]} Qc4 {[%emt 0:03:13]} 26. a3 {[%emt 0:01:54]} Nd5 {[%emt 0:03:37]} 27. g4 {[%emt 0:06:31]} Bf6 {[%emt 0:03:09]} 28. Bd6 {[%emt 0:02:25]} Nb6 {[%emt 0:02:24]} 29. Bb4 {[%emt 0:07:56]} Qd5 {[%emt 0:03:16]} 30. f4 {[%emt 0:00:00]} Nc4 {[%emt 0:00:55]} 31. Qe2 {[%emt 0:00:28]} Bxd4 {[%emt 0:00:23]} 32. exd4 {[%emt 0:00:13]} Qxd4+ {[%emt 0:00:05]} 33. Kg2 {[%emt 0:00:14]} Qxb2 {[%emt 0:01:51]} 34. Qxb2 {[%emt 0:00:05]} Nxb2 {[%emt 0:00:01]} 35. Kf3 {[%emt 0:00:20]} f6 {[%emt 0:02:25]} 36. Ke4 {[%emt 0:00:42]} Kf7 {[%emt 0:00:17]} 37. Kd4 {[%emt 0:01:17]} Na4 {[%emt 0:01:12]} 0-1

[Event "Moscow-ch Women 2021"]
[Site "Moscow"]
[Date "2021.04.01"]
[Round "8.10"]
[White "Barkasheva, Sofia"]
[Black "Kunikova, Polina S"]
[Result "1-0"]
[ECO "C70"]
[WhiteElo "1634"]
[BlackElo "1028"]
[Annotator "NA RC"]
[PlyCount "49"]
[EventDate "2021.03.25"]
[EventType "swiss"]
[EventCountry "RUS"]
[SourceTitle "playchess.com"]
[Source "ChessBase"]
[SourceQuality "1"]
[TimeControl "5400+30"]

1. e4 {[%emt 0:00:00]} e5 {[%emt 0:00:00]} 2. Nf3 {[%emt 0:00:00]} Nc6 {[%emt 0:00:00]} 3. Bb5 {[%emt 0:00:00]} a6 {[%emt 0:00:27]} 4. Ba4 {[%emt 0:01:38]} b5 {[%emt 0:01:20]} 5. Bb3 {[%emt 0:00:05]} Bb7 {[%emt 0:02:25]} 6. c3 {[%emt 0:00:47]} Na5 {[%emt 0:01:01]} 7. Bc2 {[%emt 0:00:33]} d5 {[%emt 0:02:37]} 8. Qe2 {[%emt 0:02:25]} f6 {[%emt 0:05:29]} 9. O-O {[%emt 0:03:22]} Bd6 {[%emt 0:01:55]} 10. Re1 {[%emt 0:02:27]} Ne7 {[%emt 0:00:58]} 11. d4 {[%emt 0:04:35]} Ng6 {[%emt 0:06:38]} 12. exd5 {[%emt 0:01:04]} Bxd5 {[%emt 0:01:16]} 13. Bxg6+ {[%emt 0:00:27]} hxg6 {[%emt 0:00:11]} 14. dxe5 {[%emt 0:00:19]} Bxf3 {[%emt 0:01:35]} 15. Qxf3 {[%emt 0:00:07]} fxe5 {[%emt 0:04:48]} 16. Qg3 {[%emt 0:01:32]} Qf6 {[%emt 0:01:03]} 17. Bg5 {[%emt 0:01:16]} Qe6 {[%emt 0:01:39]} 18. Nd2 {[%emt 0:02:15]} Kd7 {[%emt 0:07:34]} 19. Ne4 {[%emt 0:02:00]} Nc6 {[%emt 0:01:40]} 20. f4 {[%emt 0:02:55]} Qf5 {[%emt 0:04:38]} 21. Rad1 {[%emt 0:03:49]} Ke6 {[%emt 0:02:57]} 22. Qd3 {[%emt 0:01:52]} Kd7 {[%emt 0:04:15]} 23. Qd5 {[%emt 0:05:12]} Qe6 {[%emt 0:02:32]} 24. Nc5+ {[%emt 0:00:33]} Kc8 {[%emt 0:01:02]} 25. Qxe6+ {[%emt 1:03:17]} 1-0

[Event "Moscow-ch Women 2021"]
[Site "Moscow"]
[Date "2021.04.02"]
[Round "9.1"]
[White "Ilyina, Lada"]
[Black "Charochkina, Daria"]
[Result "0-1"]
[ECO "A38"]
[WhiteElo "1959"]
[BlackElo "2337"]
[Annotator "ChessBase"]
[PlyCount "82"]
[EventDate "2021.03.25"]
[EventType "swiss"]
[EventCountry "RUS"]
[SourceTitle "playchess.com"]
[Source "ChessBase"]
[SourceQuality "1"]
[TimeControl "5400+30"]

1. c4 {[%emt 0:11:30]} d6 {[%emt 0:01:19]} 2. Nc3 {[%emt 0:00:05]} c5 {[%emt 0:01:50]} 3. g3 {[%emt 0:00:10]} Nc6 {[%emt 0:01:14]} 4. Bg2 {[%emt 0:00:07]} g6 {[%emt 0:00:22]} 5. d3 {[%emt 0:04:57]} Bg7 {[%emt 0:01:54]} 6. Nf3 {[%emt 0:01:30]} Nf6 {[%emt 0:06:10]} 7. O-O {[%emt 0:00:29]} O-O {[%emt 0:00:14]} 8. a3 {[%emt 0:02:56]} Ne8 {[%emt 0:03:39]} 9. Rb1 {[%emt 0:01:28]} Nc7 {[%emt 0:04:21]} 10. Nd5 {[%emt 0:02:33]} Rb8 {[%emt 0:08:21]} 11. b4 {[%emt 0:04:34]} cxb4 {[%emt 0:01:56]} 12. axb4 {[%emt 0:00:19]} b5 {[%emt 0:01:13]} 13. Be3 {[%emt 0:15:39]} Bd7 {[%emt 0:07:09]} 14. Qd2 {[%emt 0:04:44]} bxc4 {[%emt 0:08:02]} 15. dxc4 {[%emt 0:00:30]} Bf5 {[%emt 0:00:08]} 16. Rbc1 {[%emt 0:04:27]} e6 {[%emt 0:05:52]} 17. Nxc7 {[%emt 0:02:14]} Qxc7 {[%emt 0:00:04]} 18. b5 {[%emt 0:01:22]} Ne5 {[%emt 0:12:49]} 19. c5 {[%emt 0:05:30]} d5 {[%emt 0:05:27]} 20. b6 {[%emt 0:06:40]} Qe7 {[%emt 0:01:07]} 21. Nxe5 {[%emt 0:08:50]} Bxe5 {[%emt 0:00:06]} 22. f4 {[%emt 0:00:02]} Bf6 {[%emt 0:02:44]} 23. c6 {[%emt 0:04:58]} axb6 {[%emt 0:06:05]} 24. c7 {[%emt 0:01:43]} Ra8 {[%emt 0:00:02]} 25. Bxb6 {[%emt 0:00:16]} Rfc8 {[%emt 0:00:34]} 26. g4 {[%emt 0:09:19]} Bxg4 {[%emt 0:03:02]} 27. e4 {[%emt 0:00:03]} Ra6 {[%emt 0:01:58]} 28. Ba5 {[%emt 0:01:20]} Qa3 {[%emt 0:07:53]} 29. Bb4 {[%emt 0:00:01]} Qb3 {[%emt 0:00:12]} 30. exd5 {[%emt 0:03:20]} Ra2 {[%emt 0:01:30]} 31. Qxa2 {[%emt 0:02:30]} Qxa2 {[%emt 0:00:14]} 32. d6 {[%emt 0:00:01]} Bd4+ {[%emt 0:01:21]} 33. Kh1 {[%emt 0:00:02]} e5 {[%emt 0:00:30]} 34. f5 {[%emt 0:02:10]} Qa4 {[%emt 0:02:18]} 35. Bc6 {[%emt 0:00:14]} Qxb4 {[%emt 0:01:13]} 36. d7 {[%emt 0:00:27]} Qf8 {[%emt 0:00:01]} 37. Bb7 {[%emt 0:00:31]} Rxc7 {[%emt 0:00:29]} 38. Rxc7 {[%emt 0:00:05]} Kg7 {[%emt 0:00:54]} 39. Rc8 {[%emt 0:00:48]} Qb4 {[%emt 0:00:09]} 40. Bd5 {[%emt 0:01:00]} Qb5 {[%emt 0:01:31]} 41. Bc4 {[%emt 0:00:34]} Qb7+ {[%emt 0:01:15]} 0-1

[Event "Moscow-ch Women 2021"]
[Site "Moscow"]
[Date "2021.04.02"]
[Round "9.2"]
[White "Diakonova, Ekaterina"]
[Black "Paramzina, Anastasya"]
[Result "1-0"]
[ECO "B80"]
[WhiteElo "2156"]
[BlackElo "2252"]
[Annotator "ChessBase"]
[PlyCount "79"]
[EventDate "2021.03.25"]
[EventType "swiss"]
[EventCountry "RUS"]
[SourceTitle "playchess.com"]
[Source "ChessBase"]
[SourceQuality "1"]
[TimeControl "5400+30"]

1. e4 {[%emt 0:00:00]} c5 {[%emt 0:13:21]} 2. Nf3 {[%emt 0:00:00]} d6 {[%emt 0:00:05]} 3. d4 {[%emt 0:00:00]} Nf6 {[%emt 0:00:09]} 4. Nc3 {[%emt 0:00:33]} cxd4 {[%emt 0:00:31]} 5. Nxd4 {[%emt 0:00:04]} a6 {[%emt 0:00:05]} 6. f3 {[%emt 0:00:03]} e6 {[%emt 0:01:34]} 7. Be3 {[%emt 0:00:12]} h5 {[%emt 0:00:17]} 8. a4 {[%emt 0:00:05]} Qc7 {[%emt 0:04:15]} 9. Be2 {[%emt 0:00:53]} b6 {[%emt 0:02:01]} 10. O-O {[%emt 0:03:07]} Bb7 {[%emt 0:00:42]} 11. Qd2 {[%emt 0:16:00]} Be7 {[%emt 0:04:49]} 12. Rad1 {[%emt 0:03:56]} Nbd7 {[%emt 0:01:31]} 13. Bg5 {[%emt 0:03:37]} Rc8 {[%emt 0:07:11]} 14. Kh1 {[%emt 0:08:09]} Nf8 {[%emt 0:10:12]} 15. Bxf6 {[%emt 0:11:35]} gxf6 {[%emt 0:16:11]} 16. f4 {[%emt 0:00:40]} h4 {[%emt 0:03:09]} 17. h3 {[%emt 0:01:36]} Rg8 {[%emt 0:00:46]} 18. f5 {[%emt 0:10:53]} Qc5 {[%emt 0:05:20]} 19. Qh6 {[%emt 0:07:43]} Qb4 {[%emt 0:02:56]} 20. Bh5 {[%emt 0:16:43]} e5 {[%emt 0:00:40]} 21. Ne6 {[%emt 0:01:10]} Rg3 {[%emt 0:05:30]} 22. Nxf8 {[%emt 0:02:41]} Qxb2 {[%emt 0:00:47]} 23. Qh7 {[%emt 0:01:27]} Qxc3 {[%emt 0:04:14]} 24. Qxf7+ {[%emt 0:01:13]} Kd8 {[%emt 0:00:03]} 25. Rxd6+ {[%emt 0:01:07]} Kc7 {[%emt 0:00:02]} 26. Qxe7+ {[%emt 0:00:42]} Kb8 {[%emt 0:00:05]} 27. Bf3 {[%emt 0:02:08]} Qc4 {[%emt 0:00:13]} 28. Rf2 {[%emt 0:02:10]} Qb4 {[%emt 0:00:24]} 29. Rfd2 {[%emt 0:01:08]} Qa3 {[%emt 0:00:35]} 30. Nd7+ {[%emt 0:02:16]} Ka7 {[%emt 0:00:14]} 31. Rf2 {[%emt 0:02:13]} Rc6 {[%emt 0:09:04]} 32. Re6 {[%emt 0:00:30]} Qc1+ {[%emt 0:00:13]} 33. Kh2 {[%emt 0:00:15]} Qf4 {[%emt 0:00:21]} 34. Kg1 {[%emt 0:00:09]} Rxc2 {[%emt 0:02:47]} 35. Rxc2 {[%emt 0:01:19]} Qxf3 {[%emt 0:00:03]} 36. Qd6 {[%emt 0:00:48]} Qe3+ {[%emt 0:00:09]} 37. Rf2 {[%emt 0:00:29]} Qe1+ {[%emt 0:08:01]} 38. Kh2 {[%emt 0:00:19]} Rg8 {[%emt 0:00:00]} 39. Qxb6+ {[%emt 0:00:13]} Ka8 {[%emt 0:00:00]} 40. Nc5 {[%emt 0:00:35]} 1-0

[Event "Moscow-ch Women 2021"]
[Site "Moscow"]
[Date "2021.04.02"]
[Round "9.3"]
[White "Zvereva, Margarita"]
[Black "Dimitrova, Aleksandra"]
[Result "1/2-1/2"]
[ECO "E32"]
[WhiteElo "1951"]
[BlackElo "2275"]
[Annotator "ChessBase"]
[PlyCount "112"]
[EventDate "2021.03.25"]
[EventType "swiss"]
[EventCountry "RUS"]
[SourceTitle "playchess.com"]
[Source "ChessBase"]
[SourceQuality "1"]
[TimeControl "5400+30"]

1. d4 {[%emt 0:00:00]} Nf6 {[%emt 0:00:58]} 2. c4 {[%emt 0:00:00]} e6 {[%emt 0:00:08]} 3. Nc3 {[%emt 0:00:00]} Bb4 {[%emt 0:00:14]} 4. Qc2 {[%emt 0:00:00]} O-O {[%emt 0:00:12]} 5. e4 {[%emt 0:00:00]} d5 {[%emt 0:04:10]} 6. e5 {[%emt 0:00:06]} Ne4 {[%emt 0:01:00]} 7. Bd3 {[%emt 1:33:24]} c5 {[%emt 0:02:11]} 8. Nf3 {[%emt 0:00:00]} Nc6 {[%emt 0:16:58]} 9. O-O {[%emt 0:00:00]} Bxc3 {[%emt 0:05:53]} 10. bxc3 {[%emt 0:00:00]} cxd4 {[%emt 0:04:11]} 11. Ba3 {[%emt 0:00:00]} Re8 {[%emt 0:00:50]} 12. cxd4 {[%emt 0:00:00]} Qa5 {[%emt 0:07:19]} 13. Qb2 {[%emt 0:00:00]} Qd8 {[%emt 0:13:43]} 14. Rae1 {[%emt 0:00:00]} Ng5 {[%emt 0:07:08]} 15. Nxg5 {[%emt 0:00:00]} Qxg5 {[%emt 0:00:02]} 16. f4 {[%emt 0:00:00]} Qd8 {[%emt 0:01:27]} 17. Bc5 {[%emt 0:00:00]} b6 {[%emt 0:03:39]} 18. Bd6 {[%emt 0:00:00]} Ba6 {[%emt 0:01:18]} 19. Qc3 {[%emt 0:00:00]} Bxc4 {[%emt 0:01:08]} 20. Bxc4 {[%emt 0:00:00]} dxc4 {[%emt 0:00:02]} 21. Qxc4 {[%emt 0:00:00]} Ne7 {[%emt 0:00:28]} 22. Bxe7 {[%emt 0:00:00]} Rxe7 {[%emt 0:05:20]} 23. f5 {[%emt 0:00:00]} Rc8 {[%emt 0:00:24]} 24. Qd3 {[%emt 0:00:00]} exf5 {[%emt 0:00:40]} 25. Rxf5 {[%emt 0:00:00]} Rc5 {[%emt 0:02:14]} 26. Qe3 {[%emt 0:00:00]} Rd5 {[%emt 0:00:31]} 27. Rf4 {[%emt 0:00:00]} Qd7 {[%emt 0:06:38]} 28. Qf2 {[%emt 0:00:00]} Qe6 {[%emt 0:01:38]} 29. Rc1 {[%emt 0:00:00]} Ra5 {[%emt 0:02:23]} 30. Rc2 {[%emt 0:00:00]} h6 {[%emt 0:00:31]} 31. h3 {[%emt 0:02:34]} Kh7 {[%emt 0:03:53]} 32. Rg4 {[%emt 0:03:59]} Ra3 {[%emt 0:01:53]} 33. Rg3 {[%emt 0:01:04]} Rxg3 {[%emt 0:00:31]} 34. Qxg3 {[%emt 0:00:04]} Qf5 {[%emt 0:00:54]} 35. Qc3 {[%emt 0:01:39]} Rd7 {[%emt 0:01:10]} 36. Rd2 {[%emt 0:00:50]} Qe4 {[%emt 0:02:01]} 37. Qd3 {[%emt 0:00:53]} Qxd3 {[%emt 0:00:06]} 38. Rxd3 {[%emt 0:00:03]} Kg6 {[%emt 0:00:34]} 39. Kf2 {[%emt 0:01:03]} Kf5 {[%emt 0:00:20]} 40. Ke3 {[%emt 0:00:39]} f6 {[%emt 0:00:53]} 41. exf6 {[%emt 0:00:18]} Kxf6 {[%emt 0:00:20]} 42. Rc3 {[%emt 0:00:56]} Ke6 {[%emt 0:00:15]} 43. Ke4 {[%emt 0:00:29]} Kd6 {[%emt 0:00:23]} 44. d5 {[%emt 0:02:24]} Rc7 {[%emt 0:00:41]} 45. Rg3 {[%emt 0:00:29]} Rc4+ {[%emt 0:01:01]} 46. Kd3 {[%emt 0:00:04]} Kxd5 {[%emt 0:01:17]} 47. Rxg7 {[%emt 0:00:20]} Ra4 {[%emt 0:00:02]} 48. Rd7+ {[%emt 0:00:55]} Ke5 {[%emt 0:01:00]} 49. Re7+ {[%emt 0:00:58]} Kd5 {[%emt 0:00:05]} 50. Rd7+ {[%emt 0:00:04]} Ke5 {[%emt 0:00:22]} 51. Re7+ {[%emt 0:00:06]} Kf4 {[%emt 0:01:26]} 52. Re2 {[%emt 0:00:10]} Kg3 {[%emt 0:00:40]} 53. Kc3 {[%emt 0:00:27]} h5 {[%emt 0:01:01]} 54. Kb3 {[%emt 0:00:18]} Rf4 {[%emt 0:00:25]} 55. Re5 {[%emt 0:01:02]} h4 {[%emt 0:00:21]} 56. Rg5+ {[%emt 0:00:13]} Kf2 {[%emt 0:01:05]} 1/2-1/2

[Event "Moscow-ch Women 2021"]
[Site "Moscow"]
[Date "2021.04.02"]
[Round "9.5"]
[White "Danilova, Rada"]
[Black "Gorovenko, Darya"]
[Result "0-1"]
[ECO "A65"]
[WhiteElo "2048"]
[BlackElo "2106"]
[Annotator "ChessBase"]
[PlyCount "92"]
[EventDate "2021.03.25"]
[EventType "swiss"]
[EventCountry "RUS"]
[SourceTitle "playchess.com"]
[Source "ChessBase"]
[SourceQuality "1"]
[TimeControl "5400+30"]

1. d4 {[%emt 0:00:00]} Nf6 {[%emt 0:00:08]} 2. c4 {[%emt 0:00:00]} g6 {[%emt 0:00:13]} 3. Nc3 {[%emt 0:00:00]} Bg7 {[%emt 0:00:11]} 4. e4 {[%emt 0:00:00]} d6 {[%emt 0:00:09]} 5. Nge2 {[%emt 0:00:27]} O-O {[%emt 0:00:24]} 6. Ng3 {[%emt 0:00:22]} c5 {[%emt 0:01:52]} 7. d5 {[%emt 0:00:17]} e6 {[%emt 0:00:35]} 8. Be2 {[%emt 0:00:30]} exd5 {[%emt 0:00:08]} 9. cxd5 {[%emt 0:00:24]} a6 {[%emt 0:02:49]} 10. a4 {[%emt 0:00:10]} Qa5 {[%emt 0:02:37]} 11. O-O {[%emt 0:01:14]} b5 {[%emt 0:01:38]} 12. Bf4 {[%emt 0:03:15]} b4 {[%emt 0:00:15]} 13. Nb1 {[%emt 0:02:34]} Qc7 {[%emt 0:10:42]} 14. a5 {[%emt 0:03:42]} Bd7 {[%emt 0:03:56]} 15. Re1 {[%emt 0:19:48]} Bb5 {[%emt 0:02:54]} 16. Nd2 {[%emt 0:10:47]} Nfd7 {[%emt 0:07:36]} 17. Qc2 {[%emt 0:03:55]} Rc8 {[%emt 0:01:07]} 18. Bg4 {[%emt 0:07:56]} h5 {[%emt 0:01:33]} 19. Bxh5 {[%emt 0:04:37]} gxh5 {[%emt 0:00:27]} 20. Nxh5 {[%emt 0:00:04]} Nf6 {[%emt 0:00:44]} 21. Nxg7 {[%emt 0:02:26]} Kxg7 {[%emt 0:00:05]} 22. e5 {[%emt 0:05:50]} Nxd5 {[%emt 0:00:05]} 23. exd6 {[%emt 0:03:57]} Qd7 {[%emt 0:00:05]} 24. Bg3 {[%emt 0:02:26]} Qg4 {[%emt 0:06:33]} 25. Ne4 {[%emt 0:06:15]} Nd7 {[%emt 0:01:16]} 26. Rad1 {[%emt 0:02:59]} Qf5 {[%emt 0:03:11]} 27. Qd2 {[%emt 0:02:12]} Bc6 {[%emt 0:00:24]} 28. f3 {[%emt 0:01:15]} Re8 {[%emt 0:05:25]} 29. Qf2 {[%emt 0:00:32]} N5f6 {[%emt 0:01:19]} 30. Nxf6 {[%emt 0:04:07]} Nxf6 {[%emt 0:01:23]} 31. Re7 {[%emt 0:01:18]} Rad8 {[%emt 0:23:23]} 32. Rc7 {[%emt 0:00:34]} Rc8 {[%emt 0:01:49]} 33. Ra7 {[%emt 0:00:49]} Bb5 {[%emt 0:00:42]} 34. Bh4 {[%emt 0:00:37]} Nd7 {[%emt 0:08:22]} 35. Qg3+ {[%emt 0:03:21]} Qg6 {[%emt 0:00:06]} 36. Qf4 {[%emt 0:01:15]} Re6 {[%emt 0:03:28]} 37. Bf2 {[%emt 0:01:05]} Rce8 {[%emt 0:04:20]} 38. h4 {[%emt 0:00:45]} Rf6 {[%emt 0:01:00]} 39. Qh2 {[%emt 0:01:37]} Rxf3 {[%emt 0:02:18]} 40. h5 {[%emt 0:00:14]} Qc2 {[%emt 0:00:44]} 41. gxf3 {[%emt 0:01:40]} Qxd1+ {[%emt 0:00:07]} 42. Kg2 {[%emt 0:00:03]} Bf1+ {[%emt 0:00:15]} 43. Kg3 {[%emt 0:01:13]} Qxd6+ {[%emt 0:00:06]} 44. f4 {[%emt 0:00:07]} Rg8 {[%emt 0:02:49]} 45. Qh4 {[%emt 0:00:22]} Kh7+ {[%emt 0:00:23]} 46. Kh2 {[%emt 0:00:37]} Qd5 {[%emt 0:00:19]} 0-1

[Event "Moscow-ch Women 2021"]
[Site "Moscow"]
[Date "2021.04.02"]
[Round "9.6"]
[White "Kuznetsova, Veronika"]
[Black "Ivanova, Anastasia S."]
[Result "0-1"]
[ECO "B26"]
[WhiteElo "1343"]
[BlackElo "1830"]
[Annotator "NA"]
[PlyCount "84"]
[EventDate "2021.03.25"]
[EventType "swiss"]
[EventCountry "RUS"]
[SourceTitle "playchess.com"]
[Source "ChessBase"]
[SourceQuality "1"]
[TimeControl "5400+30"]

1. e4 {[%emt 0:01:44]} c5 {[%emt 0:00:00]} 2. Nc3 {[%emt 0:00:24]} Nc6 {[%emt 0:00:00]} 3. g3 {[%emt 0:00:09]} g6 {[%emt 0:00:00]} 4. Bg2 {[%emt 0:00:05]} Bg7 {[%emt 0:00:00]} 5. d3 {[%emt 0:00:06]} d6 {[%emt 0:00:00]} 6. Be3 {[%emt 0:00:09]} e6 {[%emt 0:00:00]} 7. Qd2 {[%emt 0:00:06]} Rb8 {[%emt 0:00:00]} 8. Nf3 {[%emt 0:00:23]} Nd4 {[%emt 0:01:07]} 9. Nd1 {[%emt 0:00:28]} e5 {[%emt 0:01:27]} 10. c3 {[%emt 0:00:34]} Bh3 {[%emt 0:00:51]} 11. Nxd4 {[%emt 0:30:16]} Bxg2 {[%emt 0:01:22]} 12. Bg5 {[%emt 0:02:02]} Qd7 {[%emt 0:04:54]} 13. Rg1 {[%emt 0:01:47]} cxd4 {[%emt 0:00:49]} 14. Rxg2 {[%emt 0:00:51]} h6 {[%emt 0:00:54]} 15. Bh4 {[%emt 0:00:49]} g5 {[%emt 0:00:08]} 16. Bxg5 {[%emt 0:00:08]} hxg5 {[%emt 0:00:04]} 17. cxd4 {[%emt 0:02:17]} g4 {[%emt 0:07:40]} 18. d5 {[%emt 0:01:31]} Bh6 {[%emt 0:04:00]} 19. Qb4 {[%emt 0:01:43]} Nf6 {[%emt 0:03:34]} 20. Nc3 {[%emt 0:01:07]} Ke7 {[%emt 0:03:45]} 21. Ke2 {[%emt 0:03:54]} Nh7 {[%emt 0:01:16]} 22. Rgg1 {[%emt 0:10:27]} Ng5 {[%emt 0:00:54]} 23. Rad1 {[%emt 0:01:18]} Nf3 {[%emt 0:00:34]} 24. Rh1 {[%emt 0:00:04]} Rbg8 {[%emt 0:04:02]} 25. Nb5 {[%emt 0:05:05]} a6 {[%emt 0:02:41]} 26. Na3 {[%emt 0:03:04]} b5 {[%emt 0:08:22]} 27. Kf1 {[%emt 0:05:19]} Nd4 {[%emt 0:01:26]} 28. Kg2 {[%emt 0:04:50]} f5 {[%emt 0:02:17]} 29. Nb1 {[%emt 0:01:11]} f4 {[%emt 0:01:25]} 30. Nd2 {[%emt 0:03:06]} f3+ {[%emt 0:02:10]} 31. Kg1 {[%emt 0:01:09]} Rc8 {[%emt 0:01:21]} 32. h4 {[%emt 0:01:26]} gxh3 {[%emt 0:00:18]} 33. Kh2 {[%emt 0:00:18]} Rc2 {[%emt 0:01:24]} 34. Rhf1 {[%emt 0:01:01]} Ra8 {[%emt 0:07:27]} 35. Nb3 {[%emt 0:04:36]} Be3 {[%emt 0:08:51]} 36. Nxd4 {[%emt 0:00:47]} Bxd4 {[%emt 0:00:17]} 37. Qe1 {[%emt 0:00:37]} Re2 {[%emt 0:00:20]} 38. Qa5 {[%emt 0:01:06]} Bxf2 {[%emt 0:01:23]} 39. Kh1 {[%emt 0:00:33]} Qd8 {[%emt 0:01:11]} 40. Qa3 {[%emt 0:00:37]} Bxg3 {[%emt 0:04:49]} 41. Rxf3 {[%emt 0:01:07]} Qg8 {[%emt 0:00:31]} 42. d4 {[%emt 0:07:41]} Bf4 {[%emt 0:01:27]} 0-1

[Event "Moscow-ch Women 2021"]
[Site "Moscow"]
[Date "2021.04.02"]
[Round "9.7"]
[White "Lyutsinger, Iren"]
[Black "Barkasheva, Sofia"]
[Result "1-0"]
[ECO "B25"]
[WhiteElo "1464"]
[BlackElo "1634"]
[Annotator "NA"]
[PlyCount "97"]
[EventDate "2021.03.25"]
[EventType "swiss"]
[EventCountry "RUS"]
[SourceTitle "playchess.com"]
[Source "ChessBase"]
[SourceQuality "1"]
[TimeControl "5400+30"]

1. e4 {[%emt 0:00:00]} c5 {[%emt 0:02:03]} 2. Nc3 {[%emt 0:00:00]} Nc6 {[%emt 0:00:09]} 3. g3 {[%emt 0:00:00]} g6 {[%emt 0:00:04]} 4. Bg2 {[%emt 0:00:00]} Bg7 {[%emt 0:00:05]} 5. d3 {[%emt 0:00:03]} d6 {[%emt 0:00:14]} 6. f4 {[%emt 0:00:06]} e6 {[%emt 0:00:03]} 7. Nf3 {[%emt 0:00:09]} Nge7 {[%emt 0:00:09]} 8. O-O {[%emt 0:00:08]} O-O {[%emt 0:00:20]} 9. Be3 {[%emt 0:00:02]} Nd4 {[%emt 0:00:07]} 10. Rb1 {[%emt 0:00:04]} Rb8 {[%emt 0:00:07]} 11. Ne2 {[%emt 0:00:06]} Nxf3+ {[%emt 0:00:05]} 12. Bxf3 {[%emt 0:00:02]} b6 {[%emt 0:00:11]} 13. c3 {[%emt 0:00:47]} Bb7 {[%emt 0:00:10]} 14. d4 {[%emt 0:00:07]} cxd4 {[%emt 0:00:24]} 15. cxd4 {[%emt 0:00:00]} f5 {[%emt 0:01:47]} 16. Nc3 {[%emt 0:01:34]} Qd7 {[%emt 0:02:32]} 17. e5 {[%emt 1:35:22]} Rfd8 {[%emt 0:06:29]} 18. Bxb7 {[%emt 0:00:00]} Qxb7 {[%emt 0:02:32]} 19. Qb3 {[%emt 0:00:00]} Qd7 {[%emt 0:34:39]} 20. Rbd1 {[%emt 0:00:00]} Kh8 {[%emt 0:11:40]} 21. Bf2 {[%emt 0:00:00]} b5 {[%emt 0:09:37]} 22. Rfe1 {[%emt 0:00:00]} d5 {[%emt 0:04:49]} 23. Ne2 {[%emt 0:00:00]} a5 {[%emt 0:02:04]} 24. Nc1 {[%emt 0:00:00]} a4 {[%emt 0:02:53]} 25. Qf3 {[%emt 0:04:00]} Nc6 {[%emt 0:01:38]} 26. Nd3 {[%emt 0:00:00]} Bf8 {[%emt 0:01:00]} 27. g4 {[%emt 0:00:00]} Qf7 {[%emt 0:02:13]} 28. Nc5 {[%emt 0:00:00]} Bxc5 {[%emt 0:01:50]} 29. dxc5 {[%emt 0:00:00]} fxg4 {[%emt 0:02:35]} 30. Qxg4 {[%emt 0:00:00]} Rf8 {[%emt 0:01:04]} 31. Bg3 {[%emt 0:00:00]} Qf5 {[%emt 0:02:11]} 32. Qe2 {[%emt 0:00:00]} Rfc8 {[%emt 0:01:19]} 33. Qf2 {[%emt 0:00:00]} Nb4 {[%emt 0:01:49]} 34. Re3 {[%emt 0:00:00]} Nxa2 {[%emt 0:06:28]} 35. Bh4 {[%emt 0:00:00]} b4 {[%emt 0:00:46]} 36. Bf6+ {[%emt 0:00:00]} Kg8 {[%emt 0:00:07]} 37. Rde1 {[%emt 0:00:00]} b3 {[%emt 0:01:01]} 38. Rg3 {[%emt 0:00:00]} a3 {[%emt 0:00:42]} 39. Re2 {[%emt 0:00:00]} Qb1+ {[%emt 0:00:34]} 40. Kg2 {[%emt 0:00:00]} Nc1 {[%emt 0:00:00]} 41. Ree3 {[%emt 0:00:00]} a2 {[%emt 0:00:25]} 42. Rxg6+ {[%emt 0:00:00]} Qxg6+ {[%emt 0:00:50]} 43. Rg3 {[%emt 0:00:00]} a1=Q {[%emt 0:00:08]} 44. Rxg6+ {[%emt 0:00:00]} hxg6 {[%emt 0:00:04]} 45. Qh4 {[%emt 0:00:00]} Qxb2+ {[%emt 0:00:08]} 46. Kh1 {[%emt 0:00:00]} Rb7 {[%emt 0:02:23]} 47. Qh8+ {[%emt 0:00:00]} Kf7 {[%emt 0:00:05]} 48. Qg7+ {[%emt 0:00:00]} Ke8 {[%emt 0:00:05]} 49. Qxb7 {[%emt 0:00:00]} 1-0